[Event "44th Chess Olympiad Open 2022"]
[Site "Chennai"]
[Date "2022.08.08"]
[Round "10.23"]
[White "Henderson de La Fuente, Lance"]
[Black "Ragger, Markus"]
[Result "1/2-1/2"]
[ECO "C77"]
[WhiteElo "2490"]
[BlackElo "2647"]
[Annotator "TA"]
[PlyCount "80"]
[EventDate "2022.07.29"]
[EventType "team-tourn"]
[EventCountry "IND"]
[SourceTitle "playchess.com"]
[Source "ChessBase"]
[SourceQuality "1"]
[WhiteTeam "Andorra"]
[BlackTeam "Austria"]
[WhiteTeamCountry "AND"]
[BlackTeamCountry "AUT"]
[TimeControl "40/5400+30:1800+30"]

{[%evp 13,80,0,0,0,8,-20,-18,-21,-12,-18,-12,-17,-15,-15,1,0,40,46,29,15,31,20,22,17,22,9,30,30,30,36,30,30,35,35,40,11,11,11,11,11,11,11,35,11,11,11,11,11,19,19,19,19,19,19,19,19,44,44,44,44,44,44,44,52,59,0,59,0,59]} 1. e4 {[%emt 0:00:25]} e5 {[%emt 0:00:01]} 2. Nf3 {[%emt 0:00:18]} Nc6 {[%emt 0:00:02]} 3. Bb5 {[%emt 0:00:57]} a6 {[%emt 0:00:07]} 4. Ba4 {[%emt 0:01:19]} Nf6 {[%emt 0:02:18]} 5. Bxc6 {[%emt 0:02:32]} dxc6 {[%emt 0:00:30]} 6. d3 {[%emt 0:00:11]} Bd6 $1 {[%emt 0:00:23] The main line 6...Bd6 scores better than 6...Nd7.} 7. Nbd2 {[%emt 0:00:54]} Be6 {[%emt 0:04:53]} 8. b3 {[%emt 0:04:32] C77: Ruy Lopez: 3...a6 4 Ba4 Nf6, unusual lines.} Nd7 {[%emt 0:04:21]} 9. Nc4 {[%emt 0:06:53]} Bxc4 {[%emt 0:20:34]} 10. dxc4 {[%emt 0:09:00]} O-O {[%emt 0:06:46]} 11. O-O {[%emt 0:04:22]} Qe7 {[%emt 0:02:14]} 12. Qe2 {[%emt 0:01:22]} Rfd8 {[%emt 0:00:47]} 13. g3 {[%emt 0:09:44] [#]} b5 $146 {[%emt 0:01:59]} ({Predecessor:} 13... f6 14. Rd1 Nf8 15. c3 Ne6 16. Ne1 a5 17. Nd3 Rd7 18. Be3 Rad8 19. Kg2 b6 {½-½ (51) Har Even,A (2374)-Bescos Anzano,M (2562) ICCF email 2016}) 14. a4 {[%emt 0:03:39][%cal Ra4b5]} Rab8 {[%emt 0:00:47]} 15. axb5 {[%emt 0:00:00]} axb5 {[%emt 0:01:59]} 16. Kg2 {[%emt 0:00:00]} Nf8 {[%emt 0:07:59]} 17. Ra6 {[%emt 0:01:51]} Qe8 {[%emt 0:02:25]} 18. Be3 {[%emt 0:00:56]} Ne6 {[%emt 0:05:11] Prevents c5.} 19. Ng5 {[%emt 0:02:44]} Nxg5 {[%emt 0:11:48]} 20. Bxg5 {[%emt 0:00:07]} Ra8 {[%emt 0:00:11]} 21. Rfa1 {[%emt 0:00:27]} Rxa6 {[%emt 0:00:16]} 22. Rxa6 {[%emt 0:00:05]} Ra8 {[%emt 0:00:23]} 23. Rxa8 {[%emt 0:03:28]} Qxa8 $14 {[%emt 0:00:49][%mdl 4096] Endgame KQB-KQB} 24. f3 {[%emt 0:00:37]} Qa6 {[%emt 0:01:22]} 25. Be3 {[%emt 0:02:13]} bxc4 {[%emt 0:00:05]} 26. Qxc4 {[%emt 0:05:17]} Qxc4 {[%emt 0:08:04]} 27. bxc4 $11 {[%emt 0:00:02] KB-KB} f6 {[%emt 0:00:25]} 28. Kf2 {[%emt 0:00:22]} (28. c5 $5 {[%cal Rc5d6]} Be7 29. f4 $11) 28... Kf7 {[%emt 0:00:22]} 29. Ke2 {[%emt 0:00:08]} Ke6 {[%emt 0:00:24]} 30. Kd3 {[%emt 0:06:35]} c5 {[%emt 0:06:59]} 31. Kc3 {[%emt 0:00:00]} Kd7 {[%emt 0:00:06]} 32. Kb3 {[%emt 0:00:00]} Kc6 {[%emt 0:00:04]} 33. Ka4 {[%emt 0:00:00]} Kb6 {[%emt 0:00:04]} 34. g4 {[%emt 0:00:00]} g5 {[%emt 0:01:14]} 35. h3 {[%emt 0:00:00]} Be7 {[%emt 0:00:37]} 36. Bd2 {[%emt 0:00:00]} Bd6 {[%emt 0:00:24]} 37. Bc3 {[%emt 0:01:08]} Be7 {[%emt 0:00:32]} 38. Ba5+ {[%emt 0:00:15]} Kc6 {[%emt 0:00:34]} 39. Bc3 {[%emt 0:00:07]} Kb6 $1 {[%emt 0:00:02]} 40. Ba5+ {[%emt 0:00:06]} Kc6 {[%emt 0:00:04] Weighted Error Value: White=0.08 (flawless) /Black=0.05 (flawless)} 1/2-1/2

[Event "44th Chess Olympiad Open 2022"]
[Site "Chennai"]
[Date "2022.08.08"]
[Round "10.23"]
[White "Horvath, Dominik"]
[Black "Ribera Veganzones, Serni"]
[Result "1-0"]
[ECO "B22"]
[WhiteElo "2488"]
[BlackElo "2203"]
[Annotator "TA"]
[PlyCount "123"]
[EventDate "2022.07.29"]
[EventType "team-tourn"]
[EventCountry "IND"]
[SourceTitle "playchess.com"]
[Source "ChessBase"]
[SourceQuality "1"]
[WhiteTeam "Austria"]
[BlackTeam "Andorra"]
[WhiteTeamCountry "AUT"]
[BlackTeamCountry "AND"]
[TimeControl "40/5400+30:1800+30"]

{[%evp 13,123,0,12,5,45,29,45,36,42,17,39,31,56,16,77,77,83,87,99,79,74,71,70,61,82,68,67,78,86,76,88,71,113,100,100,56,56,47,57,36,68,49,71,44,583,43,55,39,43,43,42,29,25,6,34,30,24,27,32,31,24,25,27,20,33,0,43,29,41,33,41,7,42,0,47,8,33,34,43,22,45,28,20,0,25,0,0,0,7,0,0,0,3,0,8,0,62,35,47,44,119,87,158,168,154,177,163,192,179,112,29984,29983]} 1. e4 {[%emt 0:00:01][%cal Be2e4,Be4e5][%mdl 32]} c5 {[%emt 0:00:14]} 2. c3 {[%emt 0:00:07]} Nf6 {[%emt 0:00:24]} 3. e5 {[%emt 0:00:05]} Nd5 {[%emt 0:00:17]} 4. Bc4 {[%emt 0:00:04]} Nb6 {[%emt 0:00:22]} 5. Bb3 {[%emt 0:00:04]} Nc6 {[%emt 0:00:34]} 6. d4 {[%emt 0:00:05]} cxd4 {[%emt 0:00:53]} 7. cxd4 {[%emt 0:00:04]} d5 {[%emt 0:02:25]} 8. Bc2 $1 {[%emt 0:00:08][%mdl 4] now scores much better than the old 8.Nc3. B22: Sicilian: 2 c3.} e6 {[%emt 0:04:16]} 9. Nc3 {[%emt 0:00:06]} Bd7 {[%emt 0:02:08]} 10. Nf3 {[%emt 0:00:19] White is slightly better.} Be7 {[%emt 0:00:56] [#]} 11. h4 $146 {[%emt 0:00:13]} ({Predecessor:} 11. a3 a6 12. O-O Rc8 13. Re1 Na5 14. Qd3 Qc7 15. Nd2 Nac4 16. Nxc4 Nxc4 17. Qg3 {1-0 (32) Curia,S (1989)-Manteiga,F (1684) Montevideo 2019}) 11... h6 {[%emt 0:01:40]} 12. h5 {[%emt 0:00:40]} Rc8 {[%emt 0:04:34]} 13. Rh3 {[%emt 0:00:21]} a6 {[%emt 0:02:32]} (13... Nc4 $11) 14. Rg3 $16 {[%emt 0:00:07]} Bf8 {[%emt 0:13:44]} 15. Kf1 {[%emt 0:00:05]} Na7 {[%emt 0:01:38]} 16. Bd3 {[%emt 0:04:08]} Nc4 {[%emt 0:07:50]} 17. Ne2 {[%emt 0:00:48]} Qb6 {[%emt 0:03:33]} 18. b3 {[%emt 0:00:36]} Na5 {[%emt 0:00:34]} 19. Be3 {[%emt 0:16:16]} Bb5 {[%emt 0:03:20]} 20. Ne1 {[%emt 0:00:04]} Bxd3 {[%emt 0:04:31]} 21. Nxd3 {[%emt 0:00:06]} Nb5 {[%emt 0:03:47]} 22. Nc5 {[%emt 0:03:58]} Qd8 {[%emt 0:03:48]} 23. a4 {[%emt 0:12:17]} Na7 {[%emt 0:00:22]} 24. Nd3 {[%emt 0:20:58] White is more active.} Qh4 {[%emt 0:04:48]} 25. Ndf4 {[%emt 0:01:19]} N5c6 {[%emt 0:02:18]} 26. Rc1 {[%emt 0:00:43]} Nb4 {[%emt 0:01:33]} 27. Bd2 {[%emt 0:01:14]} Nbc6 {[%emt 0:04:19]} 28. Rc2 {[%emt 0:02:13]} Qh1+ {[%emt 0:02:31]} 29. Ng1 {[%emt 0:00:05]} Qh4 $1 {[%emt 0:00:06]} (29... Nxd4 $2 30. Rxc8+ (30. Rh3 Qxg1+ 31. Kxg1 Nxc2 $18) 30... Nxc8 31. Rh3 Qxh3 32. Ngxh3 $18) 30. Be3 {[%emt 0:03:44][%cal Bd2e3,Be3c1,Bc1a3][%mdl 32]} Nb4 {[%emt 0:00:43]} 31. Rxc8+ {[%emt 0:01:48]} Nxc8 {[%emt 0:00:02]} 32. Bc1 {[%emt 0:09:51]} Nc6 {[%emt 0:00:38]} 33. Qd3 {[%emt 0:07:20]} Qd8 {[%emt 0:03:45]} 34. Nge2 {[%emt 0:01:09]} N8e7 {[%emt 0:02:09]} 35. Rf3 {[%emt 0:00:04]} Qb6 {[%emt 0:02:31]} 36. Ba3 {[%emt 0:00:39]} Nb4 {[%emt 0:06:33]} 37. Qd2 {[%emt 0:04:39]} Nec6 {[%emt 0:02:01]} 38. Rg3 {[%emt 0:00:09]} Rg8 {[%emt 0:03:29]} 39. Bxb4 {[%emt 0:07:30]} Nxb4 {[%emt 0:02:53]} 40. Qc1 {[%emt 0:01:14] Hoping for Qc8+.} Nc6 {[%emt 0:00:26]} 41. Qc2 {[%emt 0:30:05]} Rh8 {[%emt 0:33:12] Prevents Qh7.} 42. Rg4 {[%emt 0:02:58]} Ne7 {[%emt 0:00:00]} 43. Rg3 {[%emt 0:00:00]} Kd7 {[%emt 0:00:00]} (43... Nc6 $11 {should be considered.}) 44. Rf3 {[%emt 0:00:00] next Nd3 is good for White.} Ke8 {[%emt 0:00:00]} 45. Nd3 {[%emt 0:00:00]} Nc6 {[%emt 0:00:00]} 46. Rg3 {[%emt 0:00:00]} Rg8 {[%emt 0:00:00]} (46... Kd7 {seems wilder.} 47. Qb2 Rg8 48. b4 g5) 47. Kg1 {[%emt 0:00:00]} Be7 {[%emt 0:00:00]} 48. Rg4 {[%emt 0:00:00]} Bf8 {[%emt 0:00:00]} 49. Kh2 {[%emt 0:00:00]} Be7 {[%emt 0:00:00]} 50. Kh1 {[%emt 0:00:00]} Bf8 {[%emt 0:00:00]} 51. Qc3 {[%emt 0:00:00]} Be7 {[%emt 0:00:00]} 52. Qc2 {[%emt 0:00:00]} Bf8 {[%emt 0:00:00]} 53. Kh2 {[%emt 0:00:10]} Be7 {[%emt 0:00:00]} 54. Ne1 {[%emt 0:00:11][%cal Bd3e1,Be1f3,Bf3h4][%mdl 32]} Bf8 {[%emt 0:00:42]} (54... Qb4 $11 55. Nd3 Qb6) 55. Rg3 {[%emt 0:01:19]} Rh8 {[%emt 0:00:55]} 56. f4 {[%emt 0:00:36][%cal Bf2f4,Bf4f5][%mdl 32]} Kd7 {[%emt 0:01:22]} (56... Ne7 $14) 57. Nf3 {[%emt 0:00:44]} Ne7 {[%emt 0:01:38] [#] Inhibits f5.} (57... f5 $142) 58. Nh4 $1 {[%emt 0:00:05]} Nc6 {[%emt 0:00:29] [#]} 59. f5 $1 {[%emt 0:03:03] Threatens to win with fxe6+.} ({Don't take} 59. Nf3 $6 f5 $14) 59... Nxd4 {[%emt 0:00:56]} 60. Nxd4 {[%emt 0:00:04][%mdl 64] Remove Defender} Qxd4 {[%emt 0:00:06]} 61. fxe6+ {[%emt 0:00:08][%mdl 64] Deflection} Kxe6 $2 {[%emt 0:01:56][%mdl 8192]} (61... fxe6 $2 62. Ng6 Bb4 63. Nxh8 $18) (61... Kd8 $16 62. Nf3 (62. Nf5 Qxe5 63. exf7 Be7 $14) 62... Qf4) 62. Qc8+ {[%emt 0:00:05] Weighted Error Value: White=0.11 (very precise) /Black=0.25 (precise)} 1-0

[Event "44th Chess Olympiad Open 2022"]
[Site "Chennai"]
[Date "2022.08.08"]
[Round "10.23"]
[White "Ribera Veganzones, Josep Maria"]
[Black "Blohberger, Felix"]
[Result "0-1"]
[ECO "B33"]
[WhiteElo "2228"]
[BlackElo "2492"]
[Annotator "TA"]
[PlyCount "104"]
[EventDate "2022.07.29"]
[EventType "team-tourn"]
[EventCountry "IND"]
[SourceTitle "playchess.com"]
[Source "ChessBase"]
[SourceQuality "1"]
[WhiteTeam "Andorra"]
[BlackTeam "Austria"]
[WhiteTeamCountry "AND"]
[BlackTeamCountry "AUT"]
[TimeControl "40/5400+30:1800+30"]

{[%evp 26,104,25,0,0,0,0,0,0,0,8,0,0,0,0,0,0,-19,-21,-43,-16,-46,-30,-26,-27,-44,-50,-61,-78,-157,-157,-151,-155,-162,-170,-164,-169,-165,-162,-183,-162,-185,-170,-190,-190,-190,-190,-190,-190,-179,-162,-190,-190,-190,-183,-176,-166,-169,-169,-190,-190,-214,-193,-196,-194,-356,-341,-362,-343,-397,-406,-543,-520,-967,-407,-29979,-29980,-29980,-29981,-29978,-6552]} 1. e4 {[%emt 0:00:08]} c5 {[%emt 0:00:07]} 2. Nf3 {[%emt 0:00:37]} e6 {[%emt 0:00:06]} 3. d4 {[%emt 0:01:35]} cxd4 {[%emt 0:00:07]} 4. Nxd4 {[%emt 0:00:07]} Nf6 {[%emt 0:00:02]} 5. Nc3 {[%emt 0:00:43]} Nc6 {[%emt 0:00:05]} 6. Ndb5 {[%emt 0:01:30][%cal Bd4b5,Bb5a3,Ba3c2,Bc2b4][%mdl 32]} d6 {[%emt 0:00:08]} 7. Bf4 {[%emt 0:01:15]} e5 {[%emt 0:00:06]} 8. Bg5 {[%emt 0:00:11]} a6 {[%emt 0:00:08]} 9. Na3 {[%emt 0:00:13]} b5 {[%emt 0:00:10]} 10. Nd5 {[%emt 0:02:16]} Be7 {[%emt 0:00:05]} 11. Bxf6 {[%emt 0:00:50]} Bxf6 {[%emt 0:00:05]} 12. c3 {[%emt 0:02:34]} Rb8 {[%emt 0:00:06]} 13. Nc2 {[%emt 0:01:32]} Bg5 {[%emt 0:00:05]} 14. g3 {[%emt 0:01:19]} O-O {[%emt 0:00:56] B33: Sicilian: Pelikan and Sveshnikov Variations.} 15. h4 {[%emt 0:00:40]} Bh6 {[%emt 0:00:04]} 16. Bg2 {[%emt 0:00:43] 16.Qd3 gains popularity.} Ne7 {[%emt 0:07:58] The position is equal.} 17. Ncb4 {[%emt 0:02:54] Pair of Knights!} Bb7 {[%emt 0:03:36]} ({Don't play} 17... a5 18. Nxe7+ Qxe7 19. Nc6 $16) 18. O-O {[%emt 0:01:10]} a5 {[%emt 0:02:20]} 19. Nxe7+ {[%emt 0:01:47]} Qxe7 {[%emt 0:00:10]} 20. Nd5 {[%emt 0:00:09] [#]} Qe6 $146 {[%emt 0:00:15]} ({Predecessor:} 20... Bxd5 21. Qxd5 Rfc8 22. Rfd1 g6 23. Qxd6 Qxd6 24. Rxd6 b4 25. Bh3 Rc4 26. Bf1 Rc5 27. c4 a4 {½-½ (55) Koscielski,J (2264)-Storme,I (2379) Chess.com INT 2020}) 21. a4 {[%emt 0:10:45]} Bxd5 {[%emt 0:04:35]} 22. exd5 {[%emt 0:01:18]} Qd7 {[%emt 0:00:32]} 23. axb5 {[%emt 0:01:00]} Rxb5 {[%emt 0:00:50]} 24. Qa4 {[%emt 0:05:25]} Qb7 {[%emt 0:00:47]} 25. Rfb1 {[%emt 0:05:04]} Rxb2 {[%emt 0:09:00]} 26. Rxb2 {[%emt 0:01:17]} Qxb2 {[%emt 0:00:07]} 27. Qa3 {[%emt 0:13:44] White is on the road to losing.} (27. Ra2 $142 Qxc3 28. Bf1) 27... Qxa3 $17 {[%emt 0:01:50] Black is more active.} 28. Rxa3 {[%emt 0:00:09][%mdl 4096] Endgame KRB-KRB} Ra8 {[%emt 0:00:04]} 29. Bh3 {[%emt 0:04:51] [#]} Bc1 $1 {[%emt 0:00:42]} 30. Ra4 {[%emt 0:01:01]} Bb2 {[%emt 0:00:34]} 31. c4 {[%emt 0:00:48]} Bd4 {[%emt 0:01:45]} 32. Bd7 {[%emt 0:02:13]} h5 {[%emt 0:03:53]} 33. Kf1 {[%emt 0:00:33]} g6 {[%emt 0:00:13]} 34. Ke2 {[%emt 0:02:19]} f5 {[%emt 0:00:09]} 35. f3 {[%emt 0:02:29]} Ra7 {[%emt 0:02:00]} 36. Be8 {[%emt 0:06:05]} Kg7 {[%emt 0:00:33]} 37. Ra2 {[%emt 0:00:11]} e4 {[%emt 0:02:29]} 38. f4 {[%emt 0:00:43]} Bc5 {[%emt 0:03:27]} 39. Bb5 {[%emt 0:01:23]} Kf8 {[%emt 0:00:16]} 40. Ra1 {[%emt 0:00:57]} Ke7 {[%emt 0:00:14]} 41. Ra2 {[%emt 0:30:21]} Kd8 {[%emt 0:30:22]} 42. Ra1 {[%emt 0:01:09]} Bb4 {[%emt 0:00:10]} 43. Ra2 {[%emt 0:00:40]} Re7 {[%emt 0:00:19]} 44. Ke3 {[%emt 0:01:20] [#]} Kc7 $1 {[%emt 0:00:10]} 45. Ra1 $2 {[%emt 0:01:06]} (45. Kd4) 45... Kb6 $19 {[%emt 0:00:34]} 46. Rb1 {[%emt 0:01:25]} Kc5 {[%emt 0:00:31]} 47. Ra1 {[%emt 0:00:51]} Rb7 {[%emt 0:02:09]} 48. Rc1 {[%emt 0:04:30]} Rb8 {[%emt 0:01:24]} 49. Ra1 {[%emt 0:02:28]} (49. Ba4 $142 Ba3 50. Ra1) 49... Bc3 {[%emt 0:01:07]} (49... Rxb5 $142 50. cxb5 Kxb5) 50. Ra4 {[%emt 0:09:53]} (50. Rc1 $19 Bd4+ 51. Ke2) 50... Rxb5 {[%emt 0:01:14] Black mates.} 51. cxb5 {[%emt 0:03:07]} Kxb5 {[%emt 0:00:12]} 52. Ra2 {[%emt 0:01:59]} a4 {[%emt 0:00:26] Weighted Error Value: White=0.43/Black=0.15 (very precise)} 0-1

[Event "44th Chess Olympiad Open 2022"]
[Site "Chennai"]
[Date "2022.08.08"]
[Round "10.24"]
[White "Bogner, Sebastian"]
[Black "O`Gorman, Tom"]
[Result "1-0"]
[ECO "D85"]
[WhiteElo "2545"]
[BlackElo "2401"]
[Annotator "TA"]
[PlyCount "95"]
[EventDate "2022.07.29"]
[EventType "team-tourn"]
[EventCountry "IND"]
[SourceTitle "playchess.com"]
[Source "ChessBase"]
[SourceQuality "1"]
[WhiteTeam "Switzerland"]
[BlackTeam "Ireland"]
[WhiteTeamCountry "SUI"]
[BlackTeamCountry "IRL"]
[TimeControl "40/5400+30:1800+30"]

{[%evp 12,95,18,12,16,0,0,7,6,-33,-22,-16,0,0,0,0,0,0,0,0,0,0,0,0,0,0,0,0,8,14,77,55,54,41,227,226,218,217,203,206,208,204,366,370,366,360,354,365,353,360,339,344,349,336,522,250,343,329,437,413,454,447,591,576,1216,1183,1023,961,1914,1488,1599,1584,1533,1310,5189,3027,1618,1393,1229,727,29977,29978,29985,29986,29986,29987]} 1. d4 {[%emt 0:00:03]} Nf6 {[%emt 0:00:09]} 2. c4 {[%emt 0:00:07]} g6 {[%emt 0:00:10]} 3. Nc3 {[%emt 0:00:04]} d5 {[%emt 0:00:09]} 4. cxd5 {[%emt 0:00:05]} Nxd5 {[%emt 0:00:08]} 5. e4 {[%emt 0:00:03]} Nxc3 {[%emt 0:00:11]} 6. bxc3 {[%emt 0:00:05]} Bg7 {[%emt 0:00:06]} 7. Qa4+ {[%emt 0:00:17]} Qd7 {[%emt 0:00:13] D85: Exchange Grünfeld: Unusual White 7th moves and lines with 7 Nf3.} 8. Qa3 $1 {[%emt 0:00:35][%mdl 4] outshines the older 8.Qb3.} b6 {[%emt 0:00:07]} 9. Nf3 {[%emt 0:01:23]} c5 {[%emt 0:00:09] [#] The position is equal.} 10. Bb2 $1 $146 {[%emt 0:13:54][%mdl 8] A relevant novelty.} ({Predecessor:} 10. Be3 O-O 11. Rd1 cxd4 12. cxd4 Qd6 13. Qxd6 exd6 14. Rc1 Bb7 15. Bd3 Nc6 16. Kd2 {1-0 (40) Carlsen,M (2862)-Vachier Lagrave,M (2784) Wijk aan Zee 2021}) 10... O-O {[%emt 0:02:20]} 11. Bd3 {[%emt 0:01:27]} Nc6 {[%emt 0:12:45][%cal Rc5d4]} 12. d5 {[%emt 0:16:05]} e6 {[%emt 0:03:17]} 13. c4 {[%emt 0:01:05] Black must now prevent Bxg7.} Bxb2 {[%emt 0:04:06]} 14. Qxb2 {[%emt 0:00:03]} exd5 {[%emt 0:09:57]} 15. exd5 {[%emt 0:13:07]} Qe8+ {[%emt 0:06:43]} 16. Be2 {[%emt 0:04:34]} Na5 {[%emt 0:00:29]} 17. O-O {[%emt 0:01:01]} Bg4 {[%emt 0:00:21]} 18. Rfe1 {[%emt 0:02:21]} Bxf3 {[%emt 0:02:04]} 19. Bxf3 {[%emt 0:00:09]} Qd7 {[%emt 0:01:33]} 20. Qc3 {[%emt 0:12:53]} Rfe8 {[%emt 0:05:06]} (20... Rae8 $11) 21. h4 $1 $16 {[%emt 0:02:58]} h5 $1 {[%emt 0:06:41]} 22. d6 {[%emt 0:03:34] Qf6 is the strong threat.} Rad8 $2 {[%emt 0:09:19] Black cannot hold the game after this.} (22... Rab8 $14) 23. Qf6 $1 $18 {[%emt 0:00:45]} Qf5 {[%emt 0:02:39]} (23... Nxc4 $2 24. Bd5 Nxd6 25. Qxg6+ Kf8 26. Qxh5 $18) 24. Rxe8+ {[%emt 0:12:00]} Rxe8 {[%emt 0:01:19] [#]} 25. d7 $1 {[%emt 0:00:10]} (25. Qxf5 gxf5 26. Bd5 (26. Bxh5 Nxc4 27. d7 Rd8 $11) 26... Kg7 $14) 25... Qxd7 {[%emt 0:02:36]} (25... Qxf6 $2 26. dxe8=Q+ Kh7 27. Rc1 $18) (25... Re1+ $2 26. Rxe1 Qxf6 27. Re8+ Kg7 28. d8=Q $18) 26. Bd5 $40 {[%emt 0:00:03][%mdl 128] White has strong attack.} Kf8 $2 {[%emt 0:01:35]} (26... Re6 27. Bxe6 Qxe6 28. Qxe6 fxe6) 27. Qh8+ {[%emt 0:01:07]} Ke7 {[%emt 0:00:07]} 28. Re1+ {[%emt 0:00:02]} Kd8 {[%emt 0:00:08]} 29. Qf6+ {[%emt 0:00:06]} Kc7 {[%emt 0:02:31]} 30. Qf4+ {[%emt 0:03:52]} Kc8 {[%emt 0:00:01]} 31. Rxe8+ {[%emt 0:00:50]} Qxe8 {[%emt 0:00:05]} 32. Bxf7 {[%emt 0:00:05][%mdl 4096] Endgame KQB-KQN} Qe2 {[%emt 0:07:31]} (32... Qe1+ $142 33. Kh2 Qe7 34. Bxg6 Nxc4 35. Bxh5 (35. Bf5+ Kb7 $16) 35... Ne5) 33. Bd5 {[%emt 0:04:03]} (33. Qd6 $142 {aiming for Be6+.} Kb7 34. Be6) 33... Qe7 {[%emt 0:04:24]} 34. g3 {[%emt 0:00:59]} Nb7 {[%emt 0:02:57]} 35. Bf7 {[%emt 0:02:42]} Qd6 {[%emt 0:01:21]} 36. Qe4 {[%emt 0:01:23]} Qd1+ {[%emt 0:03:12]} 37. Kg2 {[%emt 0:00:19] Hoping for Qc6+.} Nd6 {[%emt 0:00:06]} 38. Qc6+ {[%emt 0:03:08]} Kd8 {[%emt 0:01:06]} 39. Bd5 {[%emt 0:00:25]} Nf5 {[%emt 0:01:38]} 40. Qa8+ {[%emt 0:00:54]} Ke7 {[%emt 0:01:31]} 41. Qxa7+ {[%emt 0:30:10]} Kf6 {[%emt 0:00:05]} 42. Qxb6+ {[%emt 0:00:00]} Kg7 {[%emt 0:00:25]} 43. Qc7+ {[%emt 0:00:00]} Kh6 {[%emt 0:00:00]} 44. Qf4+ {[%emt 0:00:00]} ({Stronger than} 44. Bg8 Ne3+ 45. Kh2 (45. fxe3 Qe2+ 46. Kg1 Qe1+ 47. Kh2 Qe2+ 48. Kh3 Qf1+ 49. Kh2 Qe2+ 50. Kh3 Qf1+ 51. Kh2 Qe2+ $11) 45... Ng4+ 46. Kg2 Ne3+ 47. Kh2 (47. fxe3 Qe2+ 48. Kh3 Qf1+ 49. Kh2 Qe2+ 50. Kh3 Qf1+ 51. Kh2 Qe2+ 52. Kh3 $11) 47... Ng4+ 48. Kg2 Ne3+ $11) 44... Kg7 {[%emt 0:00:00]} 45. Be4 {[%emt 0:00:00]} Qd4 {[%emt 0:00:00]} 46. Bxf5 {[%emt 0:00:00] White mates.} Qxf4 {[%emt 0:00:00]} 47. gxf4 {[%emt 0:00:00]} gxf5 {[%emt 0:00:00] [#]} 48. a4 $1 {[%emt 0:00:00] Weighted Error Value: White=0.12 (very precise) /Black=0.53} 1-0

[Event "44th Chess Olympiad Open 2022"]
[Site "Chennai"]
[Date "2022.08.08"]
[Round "10.24"]
[White "Murphy, Conor E"]
[Black "Georgiadis, Nico"]
[Result "0-1"]
[ECO "B53"]
[WhiteElo "2404"]
[BlackElo "2578"]
[Annotator "TA"]
[PlyCount "70"]
[EventDate "2022.07.29"]
[EventType "team-tourn"]
[EventCountry "IND"]
[SourceTitle "playchess.com"]
[Source "ChessBase"]
[SourceQuality "1"]
[WhiteTeam "Ireland"]
[BlackTeam "Switzerland"]
[WhiteTeamCountry "IRL"]
[BlackTeamCountry "SUI"]
[TimeControl "40/5400+30:1800+30"]

{[%evp 9,70,14,15,12,10,9,6,4,16,10,12,13,17,20,14,0,10,2,0,20,18,2,21,0,0,0,7,0,0,0,0,0,0,-29,-27,-120,-107,-108,-106,-238,-236,-283,-287,-286,-285,-256,-227,-318,-244,-589,-537,-6270,-5397,-29981,-29982,-29982,-29983,-29983,-29978,-29984,-29985,-29982,-12320]} 1. e4 {[%emt 0:00:03]} c5 {[%emt 0:00:05]} 2. Nf3 {[%emt 0:00:13]} d6 {[%emt 0:00:06]} 3. d4 {[%emt 0:00:17]} cxd4 {[%emt 0:00:09]} 4. Qxd4 {[%emt 0:00:06]} Nc6 {[%emt 0:00:25]} 5. Bb5 {[%emt 0:00:07]} a6 {[%emt 0:00:37]} 6. Bxc6+ {[%emt 0:00:12] B53: Sicilian: 2...d6: Lines with Qxd4.} bxc6 {[%emt 0:00:04]} 7. O-O {[%emt 0:00:16]} e5 {[%emt 0:00:38]} 8. Qa4 {[%emt 0:00:30] The position is equal. now scores much better than the old 8.Qd3.} Qc7 9. c4 {[%emt 0:00:30][%cal Oc4c5]} Nf6 {[%emt 0:01:00]} 10. Nc3 {[%emt 0:00:00][%cal Oc4c5]} Bg4 {[%emt 0:12:51] [#]} 11. Nh4 $146 {[%emt 0:00:12]} ({Predecessor:} 11. Bg5 Nd7 12. Nd2 f6 13. Be3 Be7 14. b4 Be6 15. Rfc1 Qb7 16. Rab1 O-O 17. Qd1 {0-1 (33) Anton Guijarro,D (2658)-Vallejo Pons,F (2701) Ciudad Real 2021}) 11... Nd7 {[%emt 0:06:18]} 12. Be3 {[%emt 0:08:31]} Be7 {[%emt 0:12:16]} 13. Nf5 {[%emt 0:00:46]} Bxf5 {[%emt 0:00:06]} 14. exf5 {[%emt 0:00:05]} O-O {[%emt 0:00:51]} 15. Rad1 {[%emt 0:09:26]} Rfd8 {[%emt 0:05:38][%cal Bf8d8,Bd8b8,Bb8b2,Bb2c2][%mdl 32]} 16. Rd3 {[%emt 0:08:16]} h6 {[%emt 0:08:40]} 17. Ne4 {[%emt 0:11:41]} Nf6 {[%emt 0:07:52]} 18. Nxf6+ {[%emt 0:01:05]} Bxf6 {[%emt 0:00:05]} 19. Rb3 {[%emt 0:16:04] Hoping for Bb6.} Rab8 {[%emt 0:04:32] Inhibits Bb6.} 20. Rxb8 {[%emt 0:05:18]} Rxb8 {[%emt 0:00:07]} 21. Qxa6 {[%emt 0:00:18]} Rxb2 {[%emt 0:04:03]} 22. a4 {[%emt 0:00:34] [#]} (22. Rc1 $11) 22... d5 $1 $17 {[%emt 0:11:52]} 23. cxd5 {[%emt 0:18:34]} cxd5 {[%emt 0:00:05][%cal Bc6d5,Bd5d4,Bd4d3,Bd3d2][%mdl 32]} 24. Rc1 {[%emt 0:02:11] [#] Now White is beyond hope.} (24. Qa8+ $17 Qd8 25. Qxd8+ Bxd8 26. f4) 24... Rc2 $1 $19 {[%emt 0:04:40]} 25. Qf1 {[%emt 0:01:18][%cal Oe3b6]} ({Wrong is} 25. Qa8+ $2 Kh7 26. Rd1 (26. Rxc2 $2 Qxc2 27. g3 d4 $19) 26... d4 $19) 25... d4 {[%emt 0:00:44]} 26. Qd1 {[%emt 0:02:23]} Rxc1 {[%emt 0:02:53]} 27. Bxc1 {[%emt 0:00:47][%mdl 4096] Endgame KQB-KQB} e4 {[%emt 0:00:44]} 28. Bd2 {[%emt 0:02:56]} (28. h4 {keeps fighting.}) 28... d3 {[%emt 0:01:21]} 29. a5 $2 {[%emt 0:07:59]} (29. Qc1 Qd7 30. a5) 29... Bg5 {[%emt 0:08:00] Strongly threatening ...Bxd2.} 30. Bxg5 {[%emt 0:02:57]} hxg5 {[%emt 0:00:04] KQ-KQ} 31. a6 {[%emt 0:00:09]} Qc2 {[%emt 0:01:05][%cal Rc2d1] Black mates.} 32. Qf1 {[%emt 0:00:30]} d2 {[%emt 0:00:27]} 33. a7 {[%emt 0:00:06]} Qa4 {[%emt 0:00:14]} 34. g3 {[%emt 0:02:15]} Qxa7 {[%emt 0:00:16]} 35. Qd1 {[%emt 0:00:02]} Qd4 {[%emt 0:00:22] Weighted Error Value: White=0.59/Black=0.04 (flawless)} 0-1